Department Family,Date Paid,Expense Type,Expense Area,Supplier,Transaction Number,Amount,Vat Inclusive
Crown Prosecution Service ,02/02/23,Reactive Maintenance,Estate and FM: Administration,Government Property Agency London,00000001/22884,247.10,
Crown Prosecution Service ,02/02/23,Reactive Maintenance,Estate and FM: Programme,Government Property Agency London,00000001/22884,"53,471.92",
Crown Prosecution Service ,02/02/23,Crown Court Graduated Fee Scheme,South West Crown Court: North,5 St Andrew's Hill,184595-1/KD,"56,289.42",Y
Crown Prosecution Service ,02/02/23,Crown Court Graduated Fee Scheme,East Midlands Crown Court Section,36 Bedford Row,219336-LJ,"44,735.16",Y
Crown Prosecution Service ,02/02/23,Crown Court Graduated Fee Scheme,Mersey Cheshire Crown Court Unit,Lincoln House Chambers,253316 ALKC,"32,539.32",Y
Crown Prosecution Service ,02/02/23,UK Hotels,CFO Estates,Clarity Travel Management,CPSHQ290123,130.00,Y
Crown Prosecution Service ,02/02/23,UK National rail travel,PF Learning and Development General,Clarity Travel Management,CPSHQ290123,740.10,
Crown Prosecution Service ,02/02/23,UK Hotels,Corporate Communication,Clarity Travel Management,CPSHQ290123,144.00,Y
Crown Prosecution Service ,02/02/23,UK Hotels,Director of Legal Services,Clarity Travel Management,CPSHQ290123,75.00,Y
Crown Prosecution Service ,02/02/23,UK Hotels,PF Resourcing,Clarity Travel Management,CPSHQ290123,994.00,Y
Crown Prosecution Service ,02/02/23,UK Hotels,Press Office,Clarity Travel Management,CPSHQ290123,164.00,Y
Crown Prosecution Service ,02/02/23,UK Hotels,DID Security and Information,Clarity Travel Management,CPSHQ290123,701.00,Y
Crown Prosecution Service ,02/02/23,UK Hotels,Strategy and Policy,Clarity Travel Management,CPSHQ290123,246.70,Y
Crown Prosecution Service ,02/02/23,UK Hotels,DID Central Leadership Team,Clarity Travel Management,CPSHQ290123,128.00,Y
Crown Prosecution Service ,02/02/23,UK Hotels,Private Office,Clarity Travel Management,CPSHQ290123,144.00,Y
Crown Prosecution Service ,02/02/23,UK Hotels,Permanent Transfer Costs,Clarity Travel Management,CPSHQ290123,298.00,Y
Crown Prosecution Service ,02/02/23,UK Hotels,DID Operational Process,Clarity Travel Management,CPSHQ290123,"1,433.00",Y
Crown Prosecution Service ,02/02/23,UK Hotels,DTUS,Clarity Travel Management,CPSHQ290123,84.00,Y
Crown Prosecution Service ,02/02/23,UK Hotels,PF Learning and Development General,Clarity Travel Management,CPSHQ290123,"1,776.35",Y
Crown Prosecution Service ,02/02/23,UK Hotels,PF HR Systems and Information,Clarity Travel Management,CPSHQ290123,594.00,Y
Crown Prosecution Service ,02/02/23,UK Hotels,CFO Commercial,Clarity Travel Management,CPSHQ290123,191.30,Y
Crown Prosecution Service ,02/02/23,UK Hotels,Chief Finance Officer,Clarity Travel Management,CPSHQ290123,382.10,Y
Crown Prosecution Service ,02/02/23,UK Hotels,PF People and Business Change,Clarity Travel Management,CPSHQ290123,863.36,Y
Crown Prosecution Service ,02/02/23,UK Hotels,PF HR Business Management,Clarity Travel Management,CPSHQ290123,168.36,Y
Crown Prosecution Service ,02/02/23,UK Hotels,Central Legal Training Team,Clarity Travel Management,CPSHQ290123,488.52,Y
Crown Prosecution Service ,02/02/23,Overseas Hotels,Private Office,Clarity Travel Management,CPSHQ290123,252.68,Y
Crown Prosecution Service ,02/02/23,UK Hotels,DID DTS Technology,Clarity Travel Management,CPSHQ290123,862.98,Y
Crown Prosecution Service ,02/02/23,UK Hotels,Central Operational Training,Clarity Travel Management,CPSHQ290123,99.38,Y
Crown Prosecution Service ,02/02/23,UK Hotels,Operational Change,Clarity Travel Management,CPSHQ290123,715.80,Y
Crown Prosecution Service ,02/02/23,UK Hotels,DID DTS Change,Clarity Travel Management,CPSHQ290123,"2,332.40",Y
Crown Prosecution Service ,02/02/23,UK National rail travel,PF HR Operations,Clarity Travel Management,CPSHQ290123,"2,440.10",
Crown Prosecution Service ,02/02/23,UK National rail travel,CFO Financial Reporting,Clarity Travel Management,CPSHQ290123,23.20,
Crown Prosecution Service ,02/02/23,UK National rail travel,Central Legal Training Team,Clarity Travel Management,CPSHQ290123,864.00,
Crown Prosecution Service ,02/02/23,UK National rail travel,DID DTS Change,Clarity Travel Management,CPSHQ290123,"2,039.50",
Crown Prosecution Service ,02/02/23,UK National rail travel,PF People and Business Change,Clarity Travel Management,CPSHQ290123,"1,764.60",
Crown Prosecution Service ,02/02/23,UK National rail travel,CFO Estates,Clarity Travel Management,CPSHQ290123,377.60,
Crown Prosecution Service ,02/02/23,UK National rail travel,Operational Business Support,Clarity Travel Management,CPSHQ290123,533.60,
Crown Prosecution Service ,02/02/23,UK National rail travel,CFO Commercial,Clarity Travel Management,CPSHQ290123,"1,727.75",
Crown Prosecution Service ,02/02/23,UK National rail travel,Permanent Transfer Costs,Clarity Travel Management,CPSHQ290123,195.40,
Crown Prosecution Service ,02/02/23,UK National rail travel,DID Security and Information,Clarity Travel Management,CPSHQ290123,"1,673.50",
Crown Prosecution Service ,02/02/23,UK National rail travel,PF Resourcing,Clarity Travel Management,CPSHQ290123,712.20,
Crown Prosecution Service ,02/02/23,UK National rail travel,PF Analytics and Workforce Plan,Clarity Travel Management,CPSHQ290123,188.30,
Crown Prosecution Service ,02/02/23,UK Air travel,Director of Legal Services,Clarity Travel Management,CPSHQ290123,82.48,
Crown Prosecution Service ,02/02/23,UK National rail travel,Private Office,Clarity Travel Management,CPSHQ290123,"1,123.10",
Crown Prosecution Service ,02/02/23,UK National rail travel,DID Central Leadership Team,Clarity Travel Management,CPSHQ290123,"1,089.40",
Crown Prosecution Service ,02/02/23,Overseas Air travel,Private Office,Clarity Travel Management,CPSHQ290123,199.80,
Crown Prosecution Service ,02/02/23,UK National rail travel,Corporate Communication,Clarity Travel Management,CPSHQ290123,"1,143.30",
Crown Prosecution Service ,02/02/23,UK National rail travel,Compliance and Assurance,Clarity Travel Management,CPSHQ290123,106.70,
Crown Prosecution Service ,02/02/23,UK National rail travel,PF HR Business Partnering,Clarity Travel Management,CPSHQ290123,487.00,
Crown Prosecution Service ,02/02/23,UK National rail travel,DID DTS Technology,Clarity Travel Management,CPSHQ290123,"1,516.60",
Crown Prosecution Service ,02/02/23,UK Air travel,Chief Finance Officer,Clarity Travel Management,CPSHQ290123,141.46,
Crown Prosecution Service ,02/02/23,UK National rail travel,DTUS,Clarity Travel Management,CPSHQ290123,106.00,
Crown Prosecution Service ,02/02/23,UK National rail travel,Operational Performance,Clarity Travel Management,CPSHQ290123,782.60,
Crown Prosecution Service ,02/02/23,UK National rail travel,Operational Change,Clarity Travel Management,CPSHQ290123,907.80,
Crown Prosecution Service ,02/02/23,UK National rail travel,Press Office,Clarity Travel Management,CPSHQ290123,102.80,
Crown Prosecution Service ,02/02/23,UK National rail travel,Director of Legal Services,Clarity Travel Management,CPSHQ290123,69.60,
Crown Prosecution Service ,02/02/23,UK National rail travel,Strategy and Policy,Clarity Travel Management,CPSHQ290123,"1,687.90",
Crown Prosecution Service ,02/02/23,UK National rail travel,Chief Finance Officer,Clarity Travel Management,CPSHQ290123,255.70,
Crown Prosecution Service ,02/02/23,UK Hotels,Operational Business Support,Clarity Travel Management,CPSHQ290123,162.80,Y
Crown Prosecution Service ,02/02/23,Crown Court Graduated Fee Scheme,SEOC Team 1,3 Raymond Buildings,JH/248643/1,"34,692.60",Y
Crown Prosecution Service ,02/02/23,Crown Court Graduated Fee Scheme,Wessex Crown Court Unit,4 Breams Buildings,NLKC 325799 1/2,"35,850.60",Y
Crown Prosecution Service ,02/02/23,Doctors Fees,South East Crown Court,Eynon Finch Consulting Ltd Salisbury ,OP151550,"25,700.00",
Crown Prosecution Service ,03/02/23,Crown Court Graduated Fee Scheme,Mersey Cheshire Complex Casework Unit,Exchange Chambers - Liverpool,616215 - GC,"56,460.90",Y
Crown Prosecution Service ,03/02/23,Crown Court Graduated Fee Scheme,Mersey Cheshire Complex Casework Unit,Exchange Chambers - Liverpool,616215 - NED,"29,229.24",Y
Crown Prosecution Service ,03/02/23,Apprenticeship Levy payments Permanent,Other Corporate Programme Payments,HM Revenue and Customs,948PB000021422310,"127,244.98",
Crown Prosecution Service ,03/02/23,Apprenticeship Levy payments Permanent,Other Corporate Admin Payments,HM Revenue and Customs,948PB000021422310,"8,122.02",
Crown Prosecution Service ,03/02/23,Crown Court Graduated Fee Scheme,East Midlands Crown Court Section,Seven Bedford Row,feather ct,"59,287.56",Y
Crown Prosecution Service ,03/02/23,Crown Court Graduated Fee Scheme,East Midlands Crown Court Section,Seven Bedford Row,feather dst,"30,937.56",Y
Crown Prosecution Service ,03/02/23,Crown Court Graduated Fee Scheme,South West Crown Court: South,2 Harcourt Buildings,Walnut 120152,"54,848.06",Y
Crown Prosecution Service ,06/02/23,PPE asset purchase clearing Furniture and fittings,Balance Sheet,Government Property Agency London,00000001/21784,"89,880.62",
Crown Prosecution Service ,06/02/23,National non domestic rates,Estate and FM: Programme,Government Property Agency London,00000001/21978,"72,839.78",
Crown Prosecution Service ,06/02/23,Property management fees,Estate and FM: Programme,Government Property Agency London,00000001/21978,"8,766.00",Y
Crown Prosecution Service ,06/02/23,Landlord service charge,Estate and FM: Programme,Government Property Agency London,00000001/21978,"162,676.07",Y
Crown Prosecution Service ,06/02/23,Lease liability non current lease payments,Balance Sheet,Government Property Agency London,00000001/21978,"162,745.31",
Crown Prosecution Service ,06/02/23,PPE asset purchase clearing Furniture and fittings,Balance Sheet,Government Property Agency London,00000001/22886,"114,474.55",
Crown Prosecution Service ,06/02/23,New Works: non capital,Estate and FM: Programme,Government Property Agency London,00000001/22888,"118,756.02",
Crown Prosecution Service ,06/02/23,New Works: non capital,Estate and FM: Programme,Government Property Agency London,00000001/22890,"404,480.64",
Crown Prosecution Service ,06/02/23,Right of use asset clearing Buildings,Balance Sheet,Government Property Agency London,00000001/22893,"101,896.59",
Crown Prosecution Service ,06/02/23,Right of use asset clearing Buildings,Balance Sheet,Government Property Agency London,00000001/22895,"215,826.67",
Crown Prosecution Service ,06/02/23,Right of use asset clearing Buildings,Balance Sheet,Government Property Agency London,00000001/22896,"248,397.53",
Crown Prosecution Service ,06/02/23,Right of use asset clearing Buildings,Balance Sheet,Government Property Agency London,00000001/22897,"328,160.79",
Crown Prosecution Service ,06/02/23,Right of use asset clearing Buildings,Balance Sheet,Government Property Agency London,00000001/22899,"163,805.32",
Crown Prosecution Service ,06/02/23,Crown Court Graduated Fee Scheme,London North Complex Casework Unit,6 Kings Bench Walk- Chambers of D Fisher & D Perry,102688 GP,"65,070.06",Y
Crown Prosecution Service ,06/02/23,Crown Court Graduated Fee Scheme,London North Complex Casework Unit,6 Kings Bench Walk- Chambers of D Fisher & D Perry,102688 SS,"34,360.08",Y
Crown Prosecution Service ,06/02/23,Crown Court Graduated Fee Scheme,RWD Midlands Wales Unit,Nine Bedford Row (9 Bedford Row),146899nfa,"46,284.72",Y
Crown Prosecution Service ,06/02/23,Crown Court Graduated Fee Scheme,East Midlands Crown Court Section,Seven Bedford Row,186234ga,"28,101.00",Y
Crown Prosecution Service ,06/02/23,Recoverable VAT control,Balance Sheet,Xerox (UK) Ltd,900225686,"4,370.00",Y
Crown Prosecution Service ,06/02/23,Short term leases from 2 to 12 months: IT and Equipment,Print Contract,Xerox (UK) Ltd,900225686,"21,850.00",
Crown Prosecution Service ,06/02/23,IT services,DTS Programme Project Cost,CGI IT UK Ltd,GB014098284,"26,622.00",Y
Crown Prosecution Service ,07/02/23,Landlord service charge,Estate and FM: Programme,Government Property Agency London,00000001/22250,"58,571.08",Y
Crown Prosecution Service ,07/02/23,National non domestic rates,Estate and FM: Programme,Government Property Agency London,00000001/22250,"26,747.00",
Crown Prosecution Service ,07/02/23,Property management fees,Estate and FM: Programme,Government Property Agency London,00000001/22250,"4,383.00",
Crown Prosecution Service ,07/02/23,Lease liability non current lease payments,Balance Sheet,Government Property Agency London,00000001/22250,"59,760.60",
Crown Prosecution Service ,07/02/23,Crown Court Very High Cost Cases Full Scheme,Cymru Wales South East Crown Court,Millennium Chambers,GBKC/1309/3,"63,910.00",Y
Crown Prosecution Service ,08/02/23,Other Expert Fees,Mersey Cheshire Complex Casework Unit,Evans Dewi Swansea,1544,"26,160.00",Y
Crown Prosecution Service ,08/02/23,Crown Court Graduated Fee Scheme,North East RASSO Unit,Dere Street Barristers,362918 AR,"37,932.30",Y
Crown Prosecution Service ,08/02/23,Crown Court Graduated Fee Scheme,North East RASSO Unit,Dere Street Barristers,362918 JAW,"25,729.40",Y
Crown Prosecution Service ,08/02/23,Crown Court Graduated Fee Scheme,West Midlands Crown Court Unit,Church Court Chambers,73476 BAKC,"74,191.98",Y
Crown Prosecution Service ,08/02/23,IT services,DTS Programme Project Cost,Mobilise Cloud Services Limited London,CPSINV054,"42,216.00",Y
Crown Prosecution Service ,08/02/23,Recoverable VAT control,Balance Sheet,CGI IT UK Ltd,GB014097743,"148,323.61",Y
Crown Prosecution Service ,08/02/23,Intangibles asset purchase clearing CMS,DTS ICT Capital Expenditure,CGI IT UK Ltd,GB014097743,"741,618.06",
Crown Prosecution Service ,08/02/23,Other interest charges,Other Corporate Admin Payments,HM Customs and Excise,VAT 888 8231 64,"1,063.77",
Crown Prosecution Service ,08/02/23,VAT liability control,Balance Sheet,HM Customs and Excise,VAT 888 8231 64,"24,602.00",
Crown Prosecution Service ,09/02/23,Miscellaneous Office Expenses,PF HR Business Management,PA Consulting Services Limited,0000022222,"32,400.00",Y
Crown Prosecution Service ,09/02/23,Crown Court Graduated Fee Scheme,London South Crown Court Unit,Red Lion Chambers (18 RLC),153430MGtrialfees,"47,647.73",Y
Crown Prosecution Service ,09/02/23,Crown Court Graduated Fee Scheme,Wessex RASSO Unit,Red Lion Chambers (18 RLC),164917KB,"33,353.40",Y
Crown Prosecution Service ,13/02/23,Crown Court Graduated Fee Scheme,London North Complex Casework Unit,Nine Bedford Row (9 Bedford Row),145036jb3,"31,506.00",Y
Crown Prosecution Service ,13/02/23,Crown Court Graduated Fee Scheme,RWD Midlands Wales Unit,5 St Andrew's Hill,178012-1/DC,"36,219.48",Y
Crown Prosecution Service ,13/02/23,Crown Court Graduated Fee Scheme,South East Crown Court,23 Essex Street Chambers,199348-ALG,"30,198.00",Y
Crown Prosecution Service ,13/02/23,IT services,DTS Programme Project Cost,Vodafone Ltd formerly Cable and Wireless Milton Keynes,4028398,"105,536.93",Y
Crown Prosecution Service ,14/02/23,Crown Court Graduated Fee Scheme,London North Complex Casework Unit,6 Kings Bench Walk- Chambers of D Fisher & D Perry,100991 DAT1,"60,546.00",Y
Crown Prosecution Service ,14/02/23,Crown Court Graduated Fee Scheme,London North Complex Casework Unit,6 Kings Bench Walk- Chambers of D Fisher & D Perry,100991 DAT2,"38,523.00",Y
Crown Prosecution Service ,14/02/23,Crown Court Graduated Fee Scheme,London North Complex Casework Unit,6 Kings Bench Walk- Chambers of D Fisher & D Perry,102733 PRA,"33,025.92",Y
Crown Prosecution Service ,14/02/23,Crown Court Graduated Fee Scheme,West Midlands Complex Casework Unit,St Johns Buildings - 24a - 28 St John Street,1146209,"26,174.40",Y
Crown Prosecution Service ,14/02/23,Crown Court Very High Cost Cases Full Scheme,East Midlands Complex Casework Unit,Seven Bedford Row,194737AL,"67,048.34",Y
Crown Prosecution Service ,14/02/23,Crown Court Graduated Fee Scheme,London North Complex Casework Unit,5 King's Bench Walk,JP 171360 TRIAL 2,"31,017.00",Y
Crown Prosecution Service ,15/02/23,Crown Court Graduated Fee Scheme,London North Complex Casework Unit,2 Hare Court Chambers -Chambers of Orlando Pownall,117928,"66,057.36",Y
Crown Prosecution Service ,15/02/23,Recruitment general costs,PF Operational HR Costs,Cabinet Office RM Shared Services,3825992,"25,852.80",Y
Crown Prosecution Service ,16/02/23,Crown Court Graduated Fee Scheme,Thames Chiltern Crown Court Unit,Nine Bedford Row (9 Bedford Row),147394rjs,"31,677.36",Y
Crown Prosecution Service ,16/02/23,Crown Court Graduated Fee Scheme,Thames Chiltern Crown Court Unit,Nine Bedford Row (9 Bedford Row),148262jb,"59,257.08",Y
Crown Prosecution Service ,16/02/23,Crown Court Graduated Fee Scheme,East of England Crown Court,5 St Andrew's Hill,179978-1/EB,"26,310.60",Y
Crown Prosecution Service ,16/02/23,New Works: non capital,Estate and FM: Programme,HM Revenue and Customs,18000052612022,"634,646.16",
Crown Prosecution Service ,16/02/23,Professional subscriptions and memberships,Operational Change,Crimeline Training Ltd Wigan,19321,"43,926.00",Y
Crown Prosecution Service ,16/02/23,Crown Court Very High Cost Cases Full Scheme,Cymru Wales Complex Casework Unit,Apex Chambers,45880-6/CLR,"43,545.00",Y
Crown Prosecution Service ,16/02/23,Crown Court Very High Cost Cases Full Scheme,Yorkshire and Humberside Complex Casework Unit,Park Square Barristers (No 6 and Sovereign merged),519075/ND Dalesway 1,"25,587.60",Y
Crown Prosecution Service ,16/02/23,UK Hotels,DID DTS Change,Clarity Travel Management,CPSHQ050223,"1,561.96",Y
Crown Prosecution Service ,16/02/23,UK Hotels,DID Operational Process,Clarity Travel Management,CPSHQ050223,285.00,Y
Crown Prosecution Service ,16/02/23,UK Hotels,PF People and Business Change,Clarity Travel Management,CPSHQ050223,192.65,Y
Crown Prosecution Service ,16/02/23,UK Hotels,Operational Change,Clarity Travel Management,CPSHQ050223,399.09,Y
Crown Prosecution Service ,16/02/23,UK Hotels,CFO Finance Operations,Clarity Travel Management,CPSHQ050223,133.00,Y
Crown Prosecution Service ,16/02/23,UK Hotels,DID DTS Technology,Clarity Travel Management,CPSHQ050223,530.00,Y
Crown Prosecution Service ,16/02/23,UK Hotels,PF Learning and Development General,Clarity Travel Management,CPSHQ050223,286.00,Y
Crown Prosecution Service ,16/02/23,UK Hotels,PF HR Business Partnering,Clarity Travel Management,CPSHQ050223,134.78,Y
Crown Prosecution Service ,16/02/23,UK Hotels,Private Office,Clarity Travel Management,CPSHQ050223,556.00,Y
Crown Prosecution Service ,16/02/23,Overseas Hotels,Strategy and Policy,Clarity Travel Management,CPSHQ050223,140.00,Y
Crown Prosecution Service ,16/02/23,UK Hotels,DID Central Leadership Team,Clarity Travel Management,CPSHQ050223,247.50,Y
Crown Prosecution Service ,16/02/23,UK Hotels,DID Security and Information,Clarity Travel Management,CPSHQ050223,"2,457.98",Y
Crown Prosecution Service ,16/02/23,UK Hotels,CFO Estates,Clarity Travel Management,CPSHQ050223,68.99,Y
Crown Prosecution Service ,16/02/23,UK Hotels,CFO Commercial,Clarity Travel Management,CPSHQ050223,"1,430.36",Y
Crown Prosecution Service ,16/02/23,UK Hotels,Director of Legal Services,Clarity Travel Management,CPSHQ050223,78.00,Y
Crown Prosecution Service ,16/02/23,UK Hotels,Permanent Transfer Costs,Clarity Travel Management,CPSHQ050223,806.50,Y
Crown Prosecution Service ,16/02/23,UK Hotels,Court Business Unit,Clarity Travel Management,CPSHQ050223,143.00,Y
Crown Prosecution Service ,16/02/23,UK Hotels,Strategy and Policy,Clarity Travel Management,CPSHQ050223,424.00,Y
Crown Prosecution Service ,16/02/23,UK Hotels,Central Legal Training Team,Clarity Travel Management,CPSHQ050223,187.12,Y
Crown Prosecution Service ,16/02/23,UK Hotels,CFO Strategic Financial Planning,Clarity Travel Management,CPSHQ050223,101.10,Y
Crown Prosecution Service ,16/02/23,UK Hotels,CFO Fin System Change and Costings,Clarity Travel Management,CPSHQ050223,112.54,Y
Crown Prosecution Service ,16/02/23,UK National rail travel,Compliance and Assurance,Clarity Travel Management,CPSHQ050223,385.10,
Crown Prosecution Service ,16/02/23,UK National rail travel,DID DTS Technology,Clarity Travel Management,CPSHQ050223,736.30,
Crown Prosecution Service ,16/02/23,UK National rail travel,DID Security and Information,Clarity Travel Management,CPSHQ050223,"1,410.50",
Crown Prosecution Service ,16/02/23,UK National rail travel,Strategy and Policy,Clarity Travel Management,CPSHQ050223,740.05,
Crown Prosecution Service ,16/02/23,UK National rail travel,CFO Fin System Change and Costings,Clarity Travel Management,CPSHQ050223,223.50,
Crown Prosecution Service ,16/02/23,UK National rail travel,PF Analytics and Workforce Plan,Clarity Travel Management,CPSHQ050223,524.20,
Crown Prosecution Service ,16/02/23,UK National rail travel,Private Office,Clarity Travel Management,CPSHQ050223,265.10,
Crown Prosecution Service ,16/02/23,UK National rail travel,Corporate Communication,Clarity Travel Management,CPSHQ050223,674.00,
Crown Prosecution Service ,16/02/23,UK National rail travel,CFO Financial Reporting,Clarity Travel Management,CPSHQ050223,162.80,
Crown Prosecution Service ,16/02/23,UK National rail travel,PF Resourcing,Clarity Travel Management,CPSHQ050223,420.40,
Crown Prosecution Service ,16/02/23,UK National rail travel,Central Legal Training Team,Clarity Travel Management,CPSHQ050223,"2,417.70",
Crown Prosecution Service ,16/02/23,UK National rail travel,DID Operational Process,Clarity Travel Management,CPSHQ050223,667.20,
Crown Prosecution Service ,16/02/23,UK National rail travel,PF HR Business Partnering,Clarity Travel Management,CPSHQ050223,671.10,
Crown Prosecution Service ,16/02/23,UK National rail travel,Director of Legal Services,Clarity Travel Management,CPSHQ050223,588.10,
Crown Prosecution Service ,16/02/23,UK National rail travel,PF Learning and Development General,Clarity Travel Management,CPSHQ050223,791.30,
Crown Prosecution Service ,16/02/23,UK National rail travel,CFO Strategic Financial Planning,Clarity Travel Management,CPSHQ050223,338.00,
Crown Prosecution Service ,16/02/23,UK National rail travel,DID Central Leadership Team,Clarity Travel Management,CPSHQ050223,"2,238.40",
Crown Prosecution Service ,16/02/23,UK National rail travel,PF Employee Relations,Clarity Travel Management,CPSHQ050223,207.00,
Crown Prosecution Service ,16/02/23,UK National rail travel,DTUS,Clarity Travel Management,CPSHQ050223,148.70,
Crown Prosecution Service ,16/02/23,UK National rail travel,Operational Performance,Clarity Travel Management,CPSHQ050223,"1,353.40",
Crown Prosecution Service ,16/02/23,UK National rail travel,CFO Finance Operations,Clarity Travel Management,CPSHQ050223,308.90,
Crown Prosecution Service ,16/02/23,UK National rail travel,Press Office,Clarity Travel Management,CPSHQ050223,178.20,
Crown Prosecution Service ,16/02/23,UK National rail travel,PF People and Business Change,Clarity Travel Management,CPSHQ050223,"2,115.15",
Crown Prosecution Service ,16/02/23,UK National rail travel,CFO Estates,Clarity Travel Management,CPSHQ050223,183.10,
Crown Prosecution Service ,16/02/23,UK National rail travel,DID DTS Change,Clarity Travel Management,CPSHQ050223,249.20,
Crown Prosecution Service ,16/02/23,UK National rail travel,Chief Finance Officer,Clarity Travel Management,CPSHQ050223,343.00,
Crown Prosecution Service ,16/02/23,UK National rail travel,Court Business Unit,Clarity Travel Management,CPSHQ050223,303.50,
Crown Prosecution Service ,16/02/23,UK National rail travel,PF HR Operations,Clarity Travel Management,CPSHQ050223,671.20,
Crown Prosecution Service ,16/02/23,UK National rail travel,Permanent Transfer Costs,Clarity Travel Management,CPSHQ050223,519.70,
Crown Prosecution Service ,16/02/23,UK National rail travel,Operational Change,Clarity Travel Management,CPSHQ050223,"3,251.85",
Crown Prosecution Service ,16/02/23,UK National rail travel,Operational Business Support,Clarity Travel Management,CPSHQ050223,518.50,
Crown Prosecution Service ,16/02/23,UK National rail travel,Central Operational Training,Clarity Travel Management,CPSHQ050223,464.80,
Crown Prosecution Service ,16/02/23,UK Hotels,PF People and Business Change,Clarity Travel Management,CPSHQ120223,222.70,Y
Crown Prosecution Service ,16/02/23,UK Hotels,Court Business Unit,Clarity Travel Management,CPSHQ120223,1.00,Y
Crown Prosecution Service ,16/02/23,UK Hotels,Corporate Communication,Clarity Travel Management,CPSHQ120223,309.00,Y
Crown Prosecution Service ,16/02/23,UK Hotels,Central Legal Training Team,Clarity Travel Management,CPSHQ120223,748.96,Y
Crown Prosecution Service ,16/02/23,UK Hotels,Press Office,Clarity Travel Management,CPSHQ120223,156.00,Y
Crown Prosecution Service ,16/02/23,UK Hotels,Central Operational Training,Clarity Travel Management,CPSHQ120223,144.00,Y
Crown Prosecution Service ,16/02/23,UK Hotels,DID Operational Process,Clarity Travel Management,CPSHQ120223,256.00,Y
Crown Prosecution Service ,16/02/23,UK Hotels,PF Resourcing,Clarity Travel Management,CPSHQ120223,675.50,Y
Crown Prosecution Service ,16/02/23,UK Hotels,DID Security and Information,Clarity Travel Management,CPSHQ120223,71.00,Y
Crown Prosecution Service ,16/02/23,UK Hotels,CFO Strategic Financial Planning,Clarity Travel Management,CPSHQ120223,58.00,Y
Crown Prosecution Service ,16/02/23,UK Hotels,DID DTS Change,Clarity Travel Management,CPSHQ120223,223.00,Y
Crown Prosecution Service ,16/02/23,UK Hotels,PF Learning and Development General,Clarity Travel Management,CPSHQ120223,75.00,Y
Crown Prosecution Service ,16/02/23,UK Hotels,PF HR Business Partnering,Clarity Travel Management,CPSHQ120223,221.00,Y
Crown Prosecution Service ,16/02/23,UK Hotels,DID DTS Technology,Clarity Travel Management,CPSHQ120223,"1,447.39",Y
Crown Prosecution Service ,16/02/23,UK National rail travel,DID Operational Process,Clarity Travel Management,CPSHQ120223,"1,153.50",
Crown Prosecution Service ,16/02/23,UK National rail travel,PF Learning and Development General,Clarity Travel Management,CPSHQ120223,"1,910.50",
Crown Prosecution Service ,16/02/23,UK National rail travel,Central Operational Training,Clarity Travel Management,CPSHQ120223,"1,571.35",
Crown Prosecution Service ,16/02/23,UK National rail travel,PF HR Business Management,Clarity Travel Management,CPSHQ120223,100.30,
Crown Prosecution Service ,16/02/23,UK National rail travel,Operational Performance,Clarity Travel Management,CPSHQ120223,643.50,
Crown Prosecution Service ,16/02/23,UK National rail travel,CFO Financial Reporting,Clarity Travel Management,CPSHQ120223,23.20,
Crown Prosecution Service ,16/02/23,UK National rail travel,DID DTS Technology,Clarity Travel Management,CPSHQ120223,698.90,
Crown Prosecution Service ,16/02/23,UK National rail travel,PF People and Business Change,Clarity Travel Management,CPSHQ120223,"1,185.25",
Crown Prosecution Service ,16/02/23,UK National rail travel,Operational Business Support,Clarity Travel Management,CPSHQ120223,"5,013.70",
Crown Prosecution Service ,16/02/23,UK National rail travel,DID Security and Information,Clarity Travel Management,CPSHQ120223,"1,908.40",
Crown Prosecution Service ,16/02/23,UK National rail travel,Corporate Communication,Clarity Travel Management,CPSHQ120223,834.00,
Crown Prosecution Service ,16/02/23,UK National rail travel,Chief Finance Officer,Clarity Travel Management,CPSHQ120223,359.50,
Crown Prosecution Service ,16/02/23,UK National rail travel,Permanent Transfer Costs,Clarity Travel Management,CPSHQ120223,717.00,
Crown Prosecution Service ,16/02/23,UK National rail travel,Director of Legal Services,Clarity Travel Management,CPSHQ120223,562.80,
Crown Prosecution Service ,16/02/23,UK National rail travel,CFO Commercial,Clarity Travel Management,CPSHQ120223,"1,300.15",
Crown Prosecution Service ,16/02/23,UK National rail travel,PF HR Business Partnering,Clarity Travel Management,CPSHQ120223,"1,408.80",
Crown Prosecution Service ,16/02/23,UK National rail travel,Private Office,Clarity Travel Management,CPSHQ120223,116.60,
Crown Prosecution Service ,16/02/23,UK National rail travel,Operational Change,Clarity Travel Management,CPSHQ120223,826.90,
Crown Prosecution Service ,16/02/23,UK National rail travel,PF Analytics and Workforce Plan,Clarity Travel Management,CPSHQ120223,37.10,
Crown Prosecution Service ,16/02/23,UK National rail travel,Press Office,Clarity Travel Management,CPSHQ120223,117.70,
Crown Prosecution Service ,16/02/23,UK National rail travel,DID Central Leadership Team,Clarity Travel Management,CPSHQ120223,556.80,
Crown Prosecution Service ,16/02/23,UK National rail travel,Court Business Unit,Clarity Travel Management,CPSHQ120223,516.30,
Crown Prosecution Service ,16/02/23,UK National rail travel,PF Resourcing,Clarity Travel Management,CPSHQ120223,"1,198.10",
Crown Prosecution Service ,16/02/23,UK National rail travel,DID DTS Change,Clarity Travel Management,CPSHQ120223,"1,711.25",
Crown Prosecution Service ,16/02/23,UK National rail travel,PF HR Systems and Information,Clarity Travel Management,CPSHQ120223,61.50,
Crown Prosecution Service ,16/02/23,UK National rail travel,Strategy and Policy,Clarity Travel Management,CPSHQ120223,"2,850.00",
Crown Prosecution Service ,16/02/23,UK National rail travel,CFO Strategic Financial Planning,Clarity Travel Management,CPSHQ120223,244.00,
Crown Prosecution Service ,16/02/23,UK National rail travel,CFO Estates,Clarity Travel Management,CPSHQ120223,624.30,
Crown Prosecution Service ,16/02/23,UK National rail travel,Central Legal Training Team,Clarity Travel Management,CPSHQ120223,"1,014.70",
Crown Prosecution Service ,16/02/23,UK National rail travel,Compliance and Assurance,Clarity Travel Management,CPSHQ120223,483.00,
Crown Prosecution Service ,16/02/23,UK National rail travel,PF HR Operations,Clarity Travel Management,CPSHQ120223,502.50,
Crown Prosecution Service ,16/02/23,UK National rail travel,CFO Finance Operations,Clarity Travel Management,CPSHQ120223,235.90,
Crown Prosecution Service ,16/02/23,UK National rail travel,PF Disability Staff Network,Clarity Travel Management,CPSHQ120223,328.50,
Crown Prosecution Service ,16/02/23,UK National rail travel,CFO Fin System Change and Costings,Clarity Travel Management,CPSHQ120223,383.30,
Crown Prosecution Service ,17/02/23,Crown Court Graduated Fee Scheme,West Midlands Complex Casework Unit,6 Kings Bench Walk- Chambers of D Fisher & D Perry,101517,"131,575.62",Y
Crown Prosecution Service ,17/02/23,Crown Court Graduated Fee Scheme,RWD Midlands Wales Unit,5 St Andrew's Hill,178012-1/JMC,"27,098.76",Y
Crown Prosecution Service ,17/02/23,Crown Court Graduated Fee Scheme,North East Crown Court Unit,Dere Street Barristers,378593 DL,"30,849.00",Y
Crown Prosecution Service ,20/02/23,Crown Court Graduated Fee Scheme,West Midlands Crown Court Unit,4 Kings Bench Walk,160783KP,"35,023.68",Y
Crown Prosecution Service ,20/02/23,Other managed/contractor services,DTS Programme Project Cost,Alexander Mann Solutions Ltd London,2729792,"40,609.32",Y
Crown Prosecution Service ,20/02/23,Crown Court Graduated Fee Scheme,Wessex Crown Court Unit,Pump Court Chambers - 3 Pump Court,275732-SFJ,"90,935.40",Y
Crown Prosecution Service ,20/02/23,Crown Court Graduated Fee Scheme,Cymru Wales Complex Casework Unit,Linenhall Chambers,316171 SPR,"30,420.60",Y
Crown Prosecution Service ,20/02/23,IT non capital software licences,Legal Reference and ICT Licenses,Oracle Corporation UK Ltd,460069427,"157,252.25",
Crown Prosecution Service ,20/02/23,Recoverable VAT control,Balance Sheet,Oracle Corporation UK Ltd,460069427,"31,450.45",Y
Crown Prosecution Service ,20/02/23,IT services,Other IT costs,Lumen Technologies UK Ltd,628025300/1127030,"51,727.82",Y
Crown Prosecution Service ,20/02/23,IT services,DTS Programme Project Cost,Mobilise Cloud Services Limited London,CPSINV056,"80,926.88",Y
Crown Prosecution Service ,20/02/23,IT services,Apps and Hosting Contract,CGI IT UK Ltd,GB014099203,"1,090,455.16",
Crown Prosecution Service ,20/02/23,Recoverable VAT control,Balance Sheet,CGI IT UK Ltd,GB014099203,"218,091.03",Y
Crown Prosecution Service ,20/02/23,IT services,DTS Programme Project Cost,eSynergy Solutions Ltd,INV00001049,"143,202.06",Y
Crown Prosecution Service ,20/02/23,Other managed/contractor services,DTS Programme Project Cost,eSynergy Solutions Ltd,INV00001050,"40,125.74",Y
Crown Prosecution Service ,20/02/23,IT services,DTS Programme Project Cost,eSynergy Solutions Ltd,INV00001053,"91,079.22",Y
Crown Prosecution Service ,20/02/23,IT services,DTS Programme Project Cost,eSynergy Solutions Ltd,INV00001054,"50,400.00",Y
Crown Prosecution Service ,20/02/23,IT services,DTS Programme Project Cost,eSynergy Solutions Ltd,INV00001055,"62,010.00",Y
Crown Prosecution Service ,21/02/23,Other managed/contractor services,DID Security and Information,Iron Mountain Ltd,0751986,"60,000.00",Y
Crown Prosecution Service ,21/02/23,IT non capital software licences,Legal Reference and ICT Licenses,Trustmarque Solutions Ltd,2357695,"52,432.97",
Crown Prosecution Service ,21/02/23,Recoverable VAT control,Balance Sheet,Trustmarque Solutions Ltd,2357695,"10,486.59",Y
Crown Prosecution Service ,21/02/23,Recoverable VAT control,Balance Sheet,Trustmarque Solutions Ltd,2357696,"7,551.47",Y
Crown Prosecution Service ,21/02/23,IT non capital software licences,Legal Reference and ICT Licenses,Trustmarque Solutions Ltd,2357696,"37,757.35",
Crown Prosecution Service ,21/02/23,IT non capital software licences,Legal Reference and ICT Licenses,Oracle Corporation UK Ltd,460069426,"93,201.77",
Crown Prosecution Service ,21/02/23,Recoverable VAT control,Balance Sheet,Oracle Corporation UK Ltd,460069426,"18,640.35",Y
Crown Prosecution Service ,21/02/23,IT services,Service Desk Contract,CGI IT UK Ltd,GB014099283,"106,245.51",
Crown Prosecution Service ,21/02/23,Recoverable VAT control,Balance Sheet,CGI IT UK Ltd,GB014099283,"21,249.10",Y
Crown Prosecution Service ,21/02/23,IT services,DTS Programme Project Cost,Green Lemon Company Ltd Haywards Heath,GLC_Invoice_2023-02_457,"42,000.00",Y
Crown Prosecution Service ,21/02/23,IT services,DTS Programme Project Cost,Green Lemon Company Ltd Haywards Heath,GLC_Invoice_2023-02_458,"36,000.00",Y
Crown Prosecution Service ,21/02/23,IT services,DTS Programme Project Cost,FlyForm LTD Cardiff,INV-11214,"62,980.06",Y
Crown Prosecution Service ,21/02/23,Recoverable VAT control,Balance Sheet,FlyForm LTD Cardiff,INV-11232,"4,879.21",Y
Crown Prosecution Service ,21/02/23,IT services,DTS Programme Project Cost,FlyForm LTD Cardiff,INV-11232,"24,395.99",
Crown Prosecution Service ,22/02/23,Crown Court Graduated Fee Scheme,RWD Midlands Wales Unit,Seven Bedford Row,188847kg12,"33,518.40",Y
Crown Prosecution Service ,22/02/23,Crown Court Graduated Fee Scheme,RWD Midlands Wales Unit,Seven Bedford Row,188847lsb trial,"49,864.20",Y
Crown Prosecution Service ,22/02/23,Crown Court Graduated Fee Scheme,London North Complex Casework Unit,QEB Hollis Whiteman Chambers,FC TCS 111738,"38,425.20",Y
Crown Prosecution Service ,22/02/23,IT non capital software licences,Corporate Communication,Softcat Plc Marlow,INVUK719173,"32,629.38",Y
Crown Prosecution Service ,23/02/23,Crown Court Graduated Fee Scheme,London North Crown Court Unit,Foundry Chambers (9-12 Bell Yard),191094/ADS - 3,"45,295.20",Y
Crown Prosecution Service ,23/02/23,Crown Court Graduated Fee Scheme,East of England Complex Casework Unit,Foundry Chambers (9-12 Bell Yard),198583/WH,"45,812.22",Y
Crown Prosecution Service ,23/02/23,Admin agency staff,DID DTS Change,Alexander Mann Solutions Ltd London,2739275,"25,130.02",Y
Crown Prosecution Service ,23/02/23,Crown Court Graduated Fee Scheme,Thames Chiltern Crown Court Unit,Foundry Chambers (9-12 Bell Yard),2DrJ 196861/PDE - 2,"28,669.08",Y
Crown Prosecution Service ,23/02/23,Other Staff Costs,Other Corporate Admin Payments,Reward Gateway (UK) Ltd,UK080053SI,"30,000.00",
Crown Prosecution Service ,24/02/23,Right of use asset clearing Buildings,Balance Sheet,Government Property Agency London,00000001/23574,"222,790.06",
Crown Prosecution Service ,24/02/23,Recoverable VAT control,Balance Sheet,Konica Minolta Business Solutions Limited,1164144332,"32,285.24",Y
Crown Prosecution Service ,24/02/23,Printing Costs,Print Contract,Konica Minolta Business Solutions Limited,1164144332,"161,426.21",
Crown Prosecution Service ,24/02/23,Crown Court Graduated Fee Scheme,Thames Chiltern Crown Court Unit,23 Essex Street Chambers,198668-NR-TRIAL,"54,937.44",Y
Crown Prosecution Service ,24/02/23,IT services,End User Computing Contract,WIPRO Holdings London,5000205864,"106,626.50",
Crown Prosecution Service ,24/02/23,Recoverable VAT control,Balance Sheet,WIPRO Holdings London,5000205864,"21,325.30",Y
Crown Prosecution Service ,24/02/23,Crown Court Graduated Fee Scheme,West Midlands Complex Casework Unit,Citadel Chambers,GAR/690409/,"37,178.76",Y
Crown Prosecution Service ,27/02/23,Crown Court Graduated Fee Scheme,Yorkshire and Humberside Complex Casework Unit,New Park Court Chambers Leeds,356922/RSKC,"70,156.86",Y
Crown Prosecution Service ,27/02/23,Crown Court Graduated Fee Scheme,Yorkshire and Humberside Complex Casework Unit,New Park Court Chambers Leeds,356922/TSS,"34,899.60",Y
Crown Prosecution Service ,27/02/23,Crown Court Graduated Fee Scheme,West Midlands British Transport Police,2 Harcourt Buildings,JK/117008,"41,711.40",Y
Crown Prosecution Service ,27/02/23,Crown Court Graduated Fee Scheme,London North Crown Court Unit,QEB Hollis Whiteman Chambers,OM 110958,"28,066.80",Y
Crown Prosecution Service ,27/02/23,Crown Court Graduated Fee Scheme,London North Crown Court Unit,QEB Hollis Whiteman Chambers,PS 110958,"42,102.60",Y
Crown Prosecution Service ,28/02/23,Crown Court Graduated Fee Scheme,North West RASSO Unit,23 Essex Street Chambers,199075-EM,"28,068.78",Y
Crown Prosecution Service ,28/02/23,General Professional Services,Strategy and Policy,Reed Talent Solutions London,R41047548M,"43,237.26",Y
